bitfinex/quotes_BTCUSD_20251215
["timestamp","ask_amount","ask_price","bid_price","bid_amount"]
[1765764314381,0.02809,89472.0,89471.0,0.02363948]
[1765764314586,0.01117805,89461.0,89456.0,0.07774001]
[1765764314781,0.01117805,89461.0,89458.0,0.02363243]
[1765764314982,0.23474095,89461.0,89459.0,0.02363243]
[1765764315324,0.04614,89459.0,89458.0,0.00011498]
[1765764315745,0.11434,89459.0,89458.0,0.00011498]
[1765764315890,0.13202,89459.0,89458.0,0.00011498]
[1765764316091,0.24432468,89459.0,89458.0,0.00011498]
[1765764316320,0.08400867,89467.0,89458.0,0.00011498]
[1765764316322,0.00099999,89480.0,89467.0,0.22354611]
[1765764316523,0.01117343,89498.0,89491.0,0.0111743]
[1765764316524,0.0111738,89495.0,89491.0,0.0111743]
[1765764316722,0.0111738,89495.0,89490.0,0.01117443]
[1765764316723,0.01117368,89496.0,89490.0,0.01117443]
[1765764316921,0.01117355,89497.0,89492.0,0.01117418]
[1765764317127,0.01117355,89497.0,89491.0,0.0111743]
[1765764317286,0.01117355,89497.0,89492.0,0.01117418]
[1765764317657,0.01117355,89497.0,89490.0,0.01117443]
[1765764317658,0.01117405,89493.0,89490.0,0.01117443]
[1765764318066,0.01117418,89492.0,89487.0,0.0111748]
[1765764318221,0.01117393,89494.0,89490.0,0.01117443]
[1765764318628,0.01117393,89494.0,89491.0,0.0111743]
[1765764318827,0.01117468,89488.0,89484.0,0.01117518]
[1765764319090,0.01117468,89488.0,89484.0,0.01129016]
[1765764319443,0.04614,89485.0,89484.0,0.01129016]
[1765764319818,0.04614,89485.0,89484.0,0.00011498]
[1765764320127,0.23467219,89487.0,89484.0,0.00011498]
[1765764320764,0.04614,89485.0,89484.0,0.00011498]
[1765764321197,0.11434,89485.0,89484.0,0.00011498]
[1765764321369,1.22664468,89485.0,89484.0,0.00011498]
[1765764321805,0.24436468,89485.0,89484.0,0.00011498]
[1765764322823,0.60536,89485.0,89484.0,0.00011498]
[1765764323019,0.71866468,89485.0,89484.0,0.00011498]
[1765764323202,0.60136468,89485.0,89484.0,0.00011498]
[1765764323367,0.38946468,89485.0,89484.0,0.00011498]
[1765764323778,0.04714,89485.0,89484.0,0.00011498]
[1765764323999,0.04714,89485.0,89484.0,0.12254785]
[1765764324000,0.002,89485.0,89484.0,0.12254785]
[1765764324242,0.002,89485.0,89484.0,0.14489821]
[1765764324964,0.001,89485.0,89484.0,0.14489821]
[1765764325118,0.001,89485.0,89484.0,0.05045785]
[1765764325326,0.01117443,89490.0,89484.0,0.05045785]
[1765764325327,0.01117455,89489.0,89486.0,0.01117493]
[1765764325533,0.01117405,89493.0,89487.0,0.0111748]
[1765764325737,0.01117405,89493.0,89484.0,0.04414585]
[1765764325738,0.08158,89488.0,89484.0,0.00261287]
[1765764325935,0.08158,89488.0,89485.0,0.01117505]
[1765764326141,0.09275468,89488.0,89484.0,0.00161287]
[1765764326341,0.05731505,89485.0,89482.0,0.01117543]
[1765764326579,0.05731505,89485.0,89480.0,0.2346884]
[1765764326580,0.05742992,89485.0,89481.0,0.01117555]
[1765764326781,0.04582,89481.0,89478.0,0.01117593]
[1765764327186,0.01128992,89485.0,89481.0,0.01117555]
[1765764327382,0.0111753,89483.0,89479.0,0.0111758]
[1765764327621,0.01128992,89485.0,89482.0,0.01117543]
[1765764327622,0.00011487,89485.0,89482.0,0.01117543]
[1765764327847,0.01128992,89485.0,89481.0,0.01117555]
[1765764328104,0.01117555,89481.0,89478.0,0.001]
[1765764328303,0.01117655,89473.0,89463.0,0.0288978]
[1765764328506,0.01117655,89473.0,89463.0,0.0111778]
[1765764328713,0.01117668,89472.0,89468.0,0.01117718]
[1765764329075,0.0111768,89471.0,89466.0,0.01117743]
[1765764329316,0.0111768,89471.0,89467.0,0.0111773]
[1765764329518,0.01117668,89472.0,89468.0,0.01117718]
[1765764329897,0.08400867,89490.0,89468.0,0.01117718]
[1765764329898,0.01117405,89493.0,89483.0,0.22350448]
[1765764330077,0.01772,89494.0,89484.0,0.04381]
[1765764330307,0.01772,89494.0,89484.0,0.11196]
[1765764330937,0.12347786,89500.0,89484.0,0.11196]
[1765764330938,0.0111728,89503.0,89484.0,0.30998039]
[1765764331139,0.01117343,89498.0,89484.0,0.30998039]
[1765764331679,0.01117355,89497.0,89484.0,0.30998039]
[1765764331879,0.01117405,89493.0,89484.0,0.11357287]
[1765764332063,0.01117455,89489.0,89484.0,0.04542287]
[1765764332266,0.01117455,89489.0,89483.0,0.22350448]
[1765764332267,0.01117455,89489.0,89473.0,0.22352899]
[1765764332268,0.01117555,89481.0,89473.0,0.22352899]
[1765764332471,0.04752487,89485.0,89481.0,0.01117555]
[1765764332472,0.11241955,89485.0,89481.0,0.01117555]
[1765764332699,0.00011487,89485.0,89483.0,0.2235055]
[1765764333126,0.00011487,89485.0,89484.0,0.04381]
[1765764333352,0.00011487,89485.0,89484.0,0.11296]
[1765764333550,0.00011487,89485.0,89484.0,0.11657287]
[1765764333750,0.00011487,89485.0,89484.0,0.11457287]
[1765764334356,0.00011487,89485.0,89484.0,0.11357287]
[1765764334558,0.00011487,89485.0,89484.0,0.04542287]
[1765764334754,0.00011487,89485.0,89484.0,0.04742287]
[1765764335885,0.00011487,89485.0,89484.0,0.00361287]
[1765764336098,0.00011487,89485.0,89484.0,0.11557287]
[1765764336523,0.00011487,89485.0,89484.0,0.002]
[1765764336742,0.00011487,89485.0,89484.0,0.003]
[1765764337172,0.00011487,89485.0,89484.0,0.02660684]
[1765764337546,0.00011487,89485.0,89484.0,0.22418838]
[1765764338600,0.00011487,89485.0,89484.0,0.07202971]
[1765764338912,0.00011487,89485.0,89484.0,0.14017971]
[1765764342821,0.00011487,89485.0,89484.0,0.07202971]
[1765764343034,0.00011487,89485.0,89484.0,0.14017971]
[1765764343616,5.90011487,89485.0,89484.0,0.14017971]
[1765764345041,5.90011487,89485.0,89484.0,0.13856684]
[1765764346350,5.90011487,89485.0,89484.0,0.07041684]
[1765764346990,5.90011487,89485.0,89484.0,0.13856684]
[1765764347573,5.90011487,89485.0,89484.0,0.02660684]
[1765764347919,5.90011487,89485.0,89484.0,0.13856684]
[1765764348073,5.90011487,89485.0,89484.0,0.22257551]
[1765764349593,5.90011487,89485.0,89484.0,0.02660684]
[1765764350176,6.24108601,89485.0,89484.0,0.02660684]
[1765764350401,5.90011487,89485.0,89484.0,0.003]
[1765764350554,5.90011487,89485.0,89484.0,0.0266771]
[1765764351495,5.90011487,89485.0,89484.0,0.0256771]
[1765764351701,5.90111487,89485.0,89484.0,0.0256771]
[1765764351842,5.90111487,89485.0,89484.0,0.1376371]
[1765764352038,5.90111487,89485.0,89484.0,0.1356371]
[1765764352242,5.90011487,89485.0,89484.0,0.16509276]
[1765764352478,5.90111487,89485.0,89484.0,0.21964577]
[1765764352817,5.90011487,89485.0,89484.0,0.21964577]
[1765764352947,5.90011487,89485.0,89484.0,0.22164577]
[1765764353365,5.90011487,89485.0,89484.0,0.22264577]
[1765764354373,5.90011487,89485.0,89484.0,0.1386371]
[1765764355861,5.90011487,89485.0,89484.0,0.0266771]
[1765764356358,5.94752487,89485.0,89484.0,0.0266771]
[1765764356569,6.01266487,89485.0,89484.0,0.0266771]
[1765764356721,6.12496955,89485.0,89484.0,0.0266771]
[1765764357334,6.01266487,89485.0,89484.0,0.003]
[1765764357539,7.12496955,89485.0,89484.0,0.003]
[1765764357699,6.85376955,89485.0,89484.0,0.002]
[1765764358129,6.85376955,89485.0,89471.0,0.0111768]
[1765764358130,0.01117555,89481.0,89476.0,0.01117618]
[1765764358467,0.0111763,89475.0,89472.0,0.01117668]
[1765764358664,0.0111763,89475.0,89473.0,0.02369186]
[1765764358863,0.0111763,89475.0,89474.0,0.02369186]
[1765764359356,0.03846605,89477.0,89474.0,0.03486829]
[1765764359535,0.03846605,89477.0,89475.0,0.02369186]
[1765764359702,0.03846605,89477.0,89470.0,0.22353687]
[1765764359703,0.0111768,89471.0,89464.0,0.04078448]
[1765764359908,0.01117693,89470.0,89467.0,0.0111773]
[1765764360260,0.01117643,89474.0,89469.0,0.23471816]
[1765764360545,0.01117655,89473.0,89470.0,0.02369254]
[1765764360751,0.11230468,89476.0,89470.0,0.02369254]
[1765764360752,0.01117593,89478.0,89475.0,0.0111763]
[1765764360955,5.90011487,89485.0,89481.0,0.23468668]
[1765764361157,5.91128992,89485.0,89482.0,0.01117543]
[1765764361568,5.90011487,89485.0,89483.0,0.22350614]
[1765764361798,5.90011487,89485.0,89484.0,0.06890724]
[1765764362202,5.90011487,89485.0,89484.0,0.02367724]
[1765764362613,5.90111487,89485.0,89484.0,0.06890724]
[1765764362763,5.90111487,89485.0,89484.0,0.13085724]
[1765764362967,5.90111487,89485.0,89484.0,0.02367724]
[1765764363188,6.00814487,89485.0,89484.0,0.02367724]
[1765764363391,6.00814487,89485.0,89474.0,0.22352862]
[1765764363392,0.01117593,89478.0,89474.0,0.22352862]
[1765764363591,0.01117593,89478.0,89472.0,0.22353189]
[1765764363592,0.01117593,89478.0,89475.0,0.02367997]
[1765764363826,0.02251,89477.0,89476.0,0.02367997]
[1765764364225,0.29981882,89484.0,89476.0,0.02367997]
[1765764364226,0.06514,89493.0,89478.0,0.01117593]
[1765764364417,5.90011487,89485.0,89482.0,0.01117543]
[1765764364618,5.90011487,89485.0,89482.0,0.23468406]
[1765764364776,5.90011487,89485.0,89484.0,0.001]
[1765764364974,5.90011487,89485.0,89482.0,0.23468406]
[1765764365234,5.90011487,89485.0,89484.0,0.22350364]
[1765764365649,5.89977891,89485.0,89484.0,0.22350364]
[1765764366084,5.90077891,89485.0,89484.0,0.29240522]
[1765764366214,5.90077891,89485.0,89484.0,0.02367158]
[1765764366557,5.90177891,89485.0,89484.0,0.02367158]
[1765764367160,5.90177891,89485.0,89483.0,0.22350405]
[1765764367356,5.90177891,89485.0,89484.0,0.02366844]
[1765764367848,5.90077891,89485.0,89484.0,0.02366844]
[1765764368413,5.89977891,89485.0,89484.0,0.02366844]
[1765764368817,5.89977891,89485.0,89484.0,0.13084844]
[1765764370013,5.89977891,89485.0,89484.0,0.13184844]
[1765764371084,5.89977891,89485.0,89484.0,0.13384844]
[1765764373328,5.89977891,89485.0,89484.0,0.02566844]
[1765764373749,5.89977891,89485.0,89484.0,0.02366844]
[1765764374126,5.89977891,89485.0,89484.0,0.02466844]
[1765764374127,5.94166891,89485.0,89484.0,0.02466844]
[1765764374327,6.11911359,89485.0,89484.0,0.02466844]
[1765764374562,6.11911359,89485.0,89482.0,0.01117543]
[1765764374563,0.11230468,89484.0,89482.0,0.01117543]
[1765764374749,0.11230468,89484.0,89483.0,0.02366758]
[1765764375355,5.89977891,89485.0,89484.0,0.22350364]
[1765764375556,5.89977891,89485.0,89484.0,0.29240122]
[1765764377186,5.89977891,89485.0,89484.0,0.02366758]
[1765764377391,5.89977891,89485.0,89483.0,0.001]
[1765764377807,5.89977891,89485.0,89482.0,0.01117543]
[1765764378125,5.89977891,89485.0,89483.0,0.02365]
[1765764378339,5.89977891,89485.0,89483.0,0.22350614]
[1765764378693,5.89977891,89485.0,89484.0,0.02364882]
[1765764379098,5.89977891,89485.0,89480.0,0.01117568]
[1765764379099,0.01117543,89482.0,89479.0,0.0111758]
[1765764379339,6.1344551,89485.0,89480.0,0.24716414]
[1765764379549,0.22350863,89482.0,89481.0,0.02365054]
[1765764379748,0.25590127,89484.0,89481.0,0.02365054]
[1765764379984,0.25590127,89484.0,89482.0,0.02365054]
[1765764380125,0.25590127,89484.0,89483.0,0.02365054]
[1765764380974,0.36293127,89484.0,89483.0,0.02365054]
[1765764381146,0.36293127,89484.0,89471.0,0.0111768]
[1765764381147,0.12348048,89479.0,89474.0,0.22352862]
[1765764381353,0.12348048,89479.0,89475.0,0.03482715]
[1765764381546,0.12348048,89479.0,89476.0,0.02365085]
[1765764381753,0.0111758,89479.0,89477.0,0.02365085]
[1765764382039,0.0111758,89479.0,89478.0,0.02365085]
[1765764382448,0.01117555,89481.0,89478.0,0.02365085]
[1765764382743,0.01117555,89481.0,89479.0,0.02365085]
[1765764382944,0.0111758,89479.0,89475.0,0.001]
[1765764383236,0.01117593,89478.0,89476.0,0.02364998]
[1765764383415,0.01117593,89478.0,89477.0,0.02364998]
[1765764384986,0.0111758,89479.0,89477.0,0.02364998]
[1765764385191,0.0111758,89479.0,89478.0,0.02364998]
[1765764385473,0.12348048,89479.0,89478.0,0.02364998]
[1765764386030,0.0111758,89479.0,89478.0,0.02364998]
[1765764386433,0.0111758,89479.0,89478.0,0.02464998]
[1765764387243,0.01117555,89481.0,89478.0,0.02464998]
[1765764387442,0.01117555,89481.0,89479.0,0.02364998]
[1765764387638,0.01117555,89481.0,89478.0,0.001]
[1765764387974,0.01117555,89481.0,89479.0,0.02366946]
[1765764388196,0.23468914,89481.0,89480.0,0.0236713]
[1765764388784,0.27324914,89481.0,89480.0,0.0236713]
[1765764389103,0.22351613,89479.0,89478.0,0.001]
[1765764389284,0.22351613,89479.0,89478.0,0.02467433]
[1765764389483,0.22351613,89479.0,89478.0,0.02367433]
[1765764389695,0.29425914,89481.0,89478.0,0.12252433]
[1765764389696,0.01117555,89481.0,89478.0,0.12252433]
[1765764389898,0.01117555,89481.0,89479.0,0.02367433]
[1765764390101,0.01117555,89481.0,89480.0,0.02367433]
[1765764390717,6.12328206,89485.0,89482.0,0.23468176]
[1765764390718,5.89977891,89485.0,89482.0,0.23468176]
[1765764391237,5.89977891,89485.0,89481.0,0.07098]
[1765764391238,5.91095396,89485.0,89481.0,0.04191555]
[1765764391665,0.23467882,89484.0,89481.0,0.03074]
[1765764392157,0.0111753,89483.0,89480.0,0.01117568]
[1765764392309,0.0111753,89483.0,89482.0,0.001]
[1765764392508,5.91095396,89485.0,89482.0,0.001]
[1765764393419,5.91095396,89485.0,89481.0,0.01117555]
[1765764393621,5.91095396,89485.0,89481.0,0.23468432]
[1765764393851,5.91095396,89485.0,89482.0,0.01117543]
[1765764394228,5.91095396,89485.0,89482.0,0.01217543]
[1765764394658,5.91095396,89485.0,89482.0,0.01117543]
[1765764394941,5.91095396,89485.0,89482.0,0.23468406]
[1765764395256,5.89977891,89485.0,89482.0,0.23468406]
[1765764395477,5.89977891,89485.0,89484.0,0.26374364]
[1765764395697,5.89977891,89485.0,89484.0,0.28741623]
[1765764395934,5.89977891,89485.0,89484.0,0.34602623]
[1765764396779,5.89977891,89485.0,89484.0,0.02367259]
[1765764396923,6.01208359,89485.0,89484.0,0.02367259]
[1765764397154,5.93941891,89485.0,89484.0,0.02367259]
[1765764397811,5.89977891,89485.0,89484.0,0.02367259]
[1765764398096,5.89977891,89485.0,89484.0,0.12252259]
[1765764400181,5.89977891,89485.0,89484.0,0.12352259]
[1765764400460,5.89977891,89485.0,89484.0,0.12613546]
[1765764404583,5.89977891,89485.0,89484.0,0.15572101]
[1765764405692,5.89977891,89485.0,89484.0,0.2885527]
[1765764405822,5.89977891,89485.0,89484.0,0.63831008]
[1765764406038,5.89977891,89485.0,89484.0,0.5792527]
[1765764406281,5.83942379,89485.0,89484.0,0.5782527]
[1765764406478,5.83942379,89485.0,89484.0,0.5772527]
[1765764406682,5.83942379,89485.0,89484.0,0.5802527]
[1765764406828,5.83942379,89485.0,89484.0,0.5782527]
[1765764407233,5.83942379,89485.0,89484.0,0.5842527]
[1765764408059,5.83942379,89485.0,89484.0,0.5832527]
[1765764409267,5.83942379,89485.0,89484.0,0.64220654]
[1765764409469,5.83942379,89485.0,89484.0,0.64820654]
[1765764409892,5.52609379,89485.0,89484.0,0.64820654]
[1765764410063,5.52609379,89485.0,89484.0,0.5892527]
[1765764410490,4.69314715,89485.0,89484.0,0.5892527]
[1765764410742,4.37981715,89485.0,89484.0,0.5892527]
[1765764411305,4.37981715,89485.0,89484.0,0.62851592]
[1765764411676,4.37981715,89485.0,89484.0,0.6069327]
[1765764411865,4.37981715,89485.0,89484.0,0.5892527]
[1765764412071,4.37981715,89485.0,89484.0,0.6069327]
[1765764412346,4.37981715,89485.0,89484.0,0.6009327]
[1765764412559,4.37981715,89485.0,89484.0,0.5949327]
[1765764412906,4.37981715,89485.0,89484.0,0.5999327]
[1765764413135,4.37981715,89485.0,89484.0,0.5949327]
[1765764413336,4.06648715,89485.0,89484.0,0.6059327]
[1765764413856,4.06648715,89485.0,89484.0,0.5999327]
[1765764414803,2.76459067,89485.0,89484.0,0.5999327]
[1765764415001,2.30626831,89485.0,89484.0,0.5999327]
[1765764415958,1.42662371,89485.0,89484.0,0.6059327]
[1765764416156,0.6964316,89485.0,89484.0,0.6059327]
[1765764416518,0.00024184,89508.0,89484.0,0.6059327]
[1765764416519,0.00024184,89508.0,89507.0,0.67656345]
[1765764416732,0.00062495,89508.0,89507.0,0.68827006]
[1765764416936,0.00062495,89508.0,89507.0,0.87061891]
[1765764417135,0.00062495,89508.0,89507.0,0.85293891]
[1765764417360,0.00062495,89508.0,89507.0,0.87061891]
[1765764419132,0.00062495,89508.0,89507.0,0.87361891]
[1765764419327,0.00062495,89508.0,89507.0,0.87561891]
[1765764419555,0.03811139,89526.0,89507.0,0.87561891]
[1765764419556,0.03811139,89526.0,89525.0,0.38581852]
[1765764419805,0.03821413,89526.0,89525.0,0.83790398]
[1765764420678,0.03821413,89526.0,89525.0,0.72550513]
[1765764421091,0.03821413,89526.0,89525.0,0.83990398]
[1765764421866,0.03821413,89526.0,89525.0,0.84290398]
[1765764422067,4.13e-06,89526.0,89525.0,0.84290398]
[1765764422281,8.978e-05,89541.0,89540.0,0.3357627]
[1765764422483,8.978e-05,89541.0,89540.0,0.49051816]
[1765764422636,8.978e-05,89541.0,89540.0,0.54053655]
[1765764423625,8.978e-05,89541.0,89540.0,0.57552683]
[1765764425061,8.978e-05,89541.0,89540.0,0.57852683]
[1765764425397,0.00108697,89541.0,89540.0,0.57552683]
[1765764425598,0.00108697,89541.0,89540.0,0.57852683]
[1765764426152,0.00108697,89541.0,89540.0,0.86822683]
[1765764426501,0.00108697,89541.0,89540.0,0.87222683]
[1765764426908,0.00108697,89541.0,89540.0,0.86822683]
[1765764427112,0.00108697,89541.0,89540.0,0.16438546]
[1765764427313,0.00108697,89541.0,89540.0,0.14970546]
[1765764427522,0.00108697,89541.0,89540.0,0.12603287]
[1765764427722,0.00108697,89541.0,89540.0,0.006]
[1765764427926,0.00108697,89541.0,89539.0,0.0521]
[1765764428129,0.00108697,89541.0,89525.0,0.22340112]
[1765764428130,0.01116894,89534.0,89530.0,0.03442]
[1765764428344,0.01116906,89533.0,89530.0,0.03442]
[1765764428720,0.01116894,89534.0,89530.0,0.03442]
[1765764429285,0.01116894,89534.0,89526.0,0.23456716]
[1765764429286,0.01117018,89524.0,89517.0,0.01117106]
[1765764429464,0.07555,89531.0,89517.0,0.01117106]
[1765764429465,0.01117081,89519.0,89517.0,0.00010274]
[1765764429612,0.0308,89518.0,89517.0,0.00010274]
[1765764430460,0.01117068,89520.0,89517.0,0.00010274]
[1765764430919,0.23458125,89522.0,89517.0,0.00010274]
[1765764430920,0.01117043,89522.0,89517.0,0.00010274]
[1765764431157,0.23455944,89530.0,89520.0,0.01117068]
[1765764431359,0.01116956,89529.0,89523.0,0.01117031]
[1765764431567,0.22337726,89535.0,89523.0,0.01117031]
[1765764431568,8.978e-05,89541.0,89536.0,0.01116869]
[1765764431769,8.978e-05,89541.0,89531.0,0.01116931]
[1765764431770,8.978e-05,89541.0,89540.0,0.08289]
[1765764432218,8.978e-05,89541.0,89540.0,0.03442]
[1765764432422,8.978e-05,89541.0,89535.0,0.08111881]
[1765764432423,0.01116819,89540.0,89536.0,0.03442]
[1765764432620,0.01125784,89541.0,89536.0,0.04558869]
[1765764433370,8.978e-05,89541.0,89538.0,0.23453728]
[1765764433712,8.978e-05,89541.0,89540.0,0.04847]
[1765764435100,0.01125784,89541.0,89536.0,0.03442]
[1765764435290,8.978e-05,89541.0,89540.0,0.04847]
[1765764435888,0.00308978,89541.0,89540.0,0.04847]
[1765764436271,0.00308978,89541.0,89540.0,0.14194664]
[1765764437017,8.978e-05,89541.0,89540.0,0.14194664]
[1765764437193,8.978e-05,89541.0,89540.0,0.07199664]
[1765764437413,0.00108978,89541.0,89540.0,0.07199664]
[1765764438016,0.00108978,89541.0,89540.0,0.14194664]
[1765764438751,8.978e-05,89541.0,89540.0,0.14355951]
[1765764439201,0.00208697,89541.0,89540.0,0.14355951]
[1765764439884,0.00208697,89541.0,89540.0,0.12739455]
[1765764440348,0.00208697,89541.0,89540.0,0.14413044]
[1765764440915,0.00208697,89541.0,89540.0,0.25652929]
[1765764441118,0.00208697,89541.0,89540.0,0.2397934]
[1765764441700,0.00108697,89541.0,89540.0,0.2397934]
[1765764442218,0.00108697,89541.0,89540.0,0.15677516]
[1765764442458,0.00108697,89541.0,89540.0,0.02352664]
[1765764442657,0.00108697,89541.0,89540.0,0.04120664]
[1765764442995,0.00108697,89541.0,89540.0,0.08967664]
[1765764443202,0.00108697,89541.0,89540.0,0.19062012]
[1765764443425,0.00108697,89541.0,89540.0,0.27363836]
[1765764446557,0.00108697,89541.0,89540.0,0.27763836]
[1765764446973,0.00108697,89541.0,89540.0,0.28063836]
[1765764448572,0.00108697,89541.0,89540.0,0.3395071]
[1765764448766,0.00108697,89541.0,89540.0,0.3355071]
[1765764449336,0.00108697,89541.0,89540.0,0.27863836]
[1765764449622,0.00108697,89541.0,89540.0,0.27563836]
[1765764450130,0.00108697,89541.0,89540.0,0.27763836]
[1765764450305,0.00108697,89541.0,89540.0,0.27563836]
[1765764450523,0.00108697,89541.0,89540.0,0.27863836]
[1765764450662,9e-05,89560.0,89557.0,0.01116607]
[1765764450865,9e-05,89560.0,89559.0,0.08127]
[1765764451063,9e-05,89560.0,89559.0,0.17364664]
[1765764451266,0.00066391,89560.0,89559.0,0.17364664]
[1765764451583,0.00066391,89560.0,89559.0,0.17525951]
[1765764451763,0.00077876,89560.0,89559.0,0.17525951]
[1765764453174,0.00077876,89560.0,89559.0,0.02352664]
[1765764453675,0.00077876,89560.0,89559.0,0.07341664]
[1765764454217,0.00077876,89560.0,89559.0,0.02352664]
[1765764454439,0.04641876,89560.0,89559.0,0.02352664]
[1765764454576,0.04641876,89560.0,89542.0,0.0588592]
[1765764454577,0.01116694,89550.0,89545.0,0.01116756]
[1765764454790,0.23449953,89553.0,89547.0,0.01116731]
[1765764454791,0.01116669,89552.0,89547.0,0.01116731]
[1765764454989,0.01116669,89552.0,89546.0,0.03471471]
[1765764454990,0.00024168,89549.0,89548.0,0.02354727]
[1765764455395,0.04588168,89549.0,89548.0,0.02354727]
[1765764455874,0.11559168,89549.0,89548.0,0.02354727]
[1765764456059,0.11559168,89549.0,89539.0,0.0294296]
[1765764456060,0.12347237,89544.0,89541.0,0.01116806]
[1765764456280,0.01116744,89546.0,89542.0,0.02355638]
[1765764456498,0.01140875,89549.0,89545.0,0.01116756]
[1765764456871,0.00024168,89549.0,89546.0,0.23451589]
[1765764457189,0.00024168,89549.0,89548.0,0.04578]
[1765764457831,0.00024168,89549.0,89548.0,0.02355114]
[1765764458003,0.00024168,89549.0,89548.0,0.04578]
[1765764458206,0.00024168,89549.0,89548.0,0.13918539]
[1765764459718,0.00024168,89549.0,89548.0,0.25158424]
[1765764459897,0.00024168,89549.0,89548.0,0.29082371]
[1765764460239,0.00024168,89549.0,89548.0,0.25158424]
[1765764460623,0.00020485,89560.0,89548.0,0.25158424]
[1765764460624,0.00792232,89575.0,89570.0,0.01116445]
[1765764461601,0.00792232,89575.0,89571.0,0.01116432]
[1765764461811,0.008,89575.0,89570.0,0.07940445]
[1765764462010,0.01116432,89571.0,89568.0,0.0111647]
[1765764462213,0.05680432,89571.0,89568.0,0.0111647]
[1765764462415,0.05680432,89571.0,89565.0,0.01116507]
[1765764462766,0.04564,89569.0,89566.0,0.03473509]
[1765764462893,0.04564,89569.0,89567.0,0.02357014]
[1765764463097,0.0111642,89572.0,89568.0,0.02357014]
[1765764463294,0.0111642,89572.0,89568.0,0.23445873]
[1765764463982,0.11230468,89578.0,89568.0,0.23445873]
[1765764463983,0.01116345,89578.0,89571.0,0.05694432]
[1765764464135,0.01116345,89578.0,89574.0,0.04578]
[1765764464136,0.01116357,89577.0,89574.0,0.04578]
[1765764464318,0.01116357,89577.0,89569.0,0.03487]
[1765764464319,0.01116382,89575.0,89569.0,0.03487]
[1765764464521,0.001,89571.0,89570.0,0.02357033]
[1765764465036,0.12346875,89573.0,89570.0,0.02357033]
[1765764465037,0.22328406,89572.0,89570.0,0.02357033]
[1765764465245,0.0224283,89572.0,89571.0,0.02357033]
[1765764466266,0.0690683,89572.0,89571.0,0.02357033]
[1765764466653,0.25177759,89572.0,89571.0,0.02357033]
[1765764467017,0.11230468,89569.0,89568.0,0.0111647]
[1765764467284,0.13473298,89570.0,89568.0,0.034726]
[1765764467511,0.11230468,89570.0,89569.0,0.0235613]
[1765764467694,0.0111642,89572.0,89569.0,0.0235613]
[1765764467892,0.2344504,89572.0,89570.0,0.0235613]
[1765764468070,0.2344504,89572.0,89567.0,0.01116482]
[1765764468071,0.0111642,89572.0,89571.0,0.0235613]
[1765764468281,0.01116357,89577.0,89573.0,0.01116407]
[1765764468439,0.01116357,89577.0,89572.0,0.22328406]
[1765764468440,0.0111637,89576.0,89572.0,0.0111642]
[1765764468652,0.01116407,89573.0,89567.0,0.23446039]
[1765764468851,0.01116407,89573.0,89568.0,0.02356333]
[1765764469110,0.01116407,89573.0,89569.0,0.02356333]
[1765764469286,0.01116407,89573.0,89570.0,0.02356333]
[1765764469495,0.0121642,89572.0,89571.0,0.02356333]
[1765764469693,0.23544826,89572.0,89571.0,0.01185333]
[1765764470057,0.17010888,89572.0,89571.0,0.01185333]
[1765764470698,0.16910888,89572.0,89571.0,0.01185333]
[1765764470929,0.0568042,89572.0,89571.0,0.01185333]
[1765764471125,0.04564,89572.0,89571.0,0.01185333]
[1765764472113,0.01116407,89573.0,89571.0,0.01185333]
[1765764472290,0.01116407,89573.0,89569.0,0.01116457]
[1765764472628,0.00063422,89570.0,89569.0,0.01116457]
[1765764473057,0.01116507,89565.0,89557.0,0.01116607]
[1765764473222,0.05680532,89563.0,89560.0,0.01116569]
[1765764473419,0.01116557,89561.0,89558.0,0.04060776]
[1765764473654,0.05680532,89563.0,89559.0,0.23448194]
[1765764473888,0.0798,89559.0,89558.0,0.02944182]
[1765764474016,0.0798,89559.0,89548.0,0.01116719]
[1765764474017,0.0798,89559.0,89551.0,0.02944182]
[1765764474018,0.01116644,89554.0,89551.0,0.02944182]
[1765764474202,0.01116532,89563.0,89556.0,0.22332395]
[1765764474407,0.28143688,89582.0,89565.0,0.23446636]
[1765764474408,0.01116445,89570.0,89565.0,0.23446636]
[1765764474609,0.01116432,89571.0,89567.0,0.01116482]
[1765764474804,0.01116407,89573.0,89570.0,0.01116445]
[1765764475261,0.01116395,89574.0,89570.0,0.01116445]
[1765764475467,0.01116432,89571.0,89568.0,0.0111647]
[1765764475867,0.01116445,89570.0,89565.0,0.01116507]
[1765764476068,0.01116432,89571.0,89567.0,0.23446058]
[1765764476242,0.01116432,89571.0,89568.0,0.0111647]
[1765764476999,0.01116457,89569.0,89566.0,0.01116495]
[1765764477360,0.23445121,89571.0,89566.0,0.01116495]
[1765764477361,0.01216432,89571.0,89567.0,0.23446134]
[1765764477740,0.001,89571.0,89568.0,0.0111647]
[1765764477959,0.0453242,89572.0,89568.0,0.0111647]
[1765764478192,0.03416,89572.0,89569.0,0.23445611]
[1765764478398,0.0453242,89572.0,89569.0,0.01116457]
[1765764478623,0.0453242,89572.0,89568.0,0.0111647]
[1765764478832,0.01116432,89571.0,89568.0,0.0111647]
[1765764479174,0.01116445,89570.0,89566.0,0.01116495]
[1765764479420,0.01176859,89569.0,89566.0,0.01116495]
[1765764479662,0.01116457,89569.0,89566.0,0.01116495]
[1765764480106,0.00054363,89567.0,89563.0,0.01116532]
[1765764480357,0.01116482,89567.0,89564.0,0.0111652]
[1765764480739,0.01216432,89571.0,89567.0,0.01116482]
[1765764480902,0.01116445,89570.0,89562.0,0.01116544]
[1765764481102,0.01116482,89567.0,89562.0,0.01116544]
[1765764481309,0.01116482,89567.0,89559.0,0.01768]
[1765764481310,0.0111652,89564.0,89559.0,0.01768]
[1765764481505,0.0224283,89566.0,89561.0,0.01116557]
[1765764481870,0.22327907,89574.0,89567.0,0.01116482]
[1765764482150,0.0111642,89572.0,89569.0,0.01116457]
[1765764482350,0.23444563,89573.0,89570.0,0.02359905]
[1765764482550,0.23444563,89573.0,89571.0,0.02359905]
[1765764482780,0.23444563,89573.0,89565.0,0.23446545]
[1765764482781,0.23444563,89573.0,89572.0,0.02359905]
[1765764482917,0.01116407,89573.0,89572.0,0.02359905]
[1765764483114,0.1234685,89575.0,89572.0,0.02359905]
[1765764483317,0.1234685,89575.0,89573.0,0.02359905]
[1765764483521,0.01116432,89571.0,89567.0,0.22329616]
[1765764483718,0.01116432,89571.0,89568.0,0.02359574]
[1765764483924,0.01116432,89571.0,89569.0,0.02359574]
[1765764484104,0.01116432,89571.0,89570.0,0.02359574]
[1765764485134,0.05800432,89571.0,89570.0,0.02359574]
[1765764485353,0.0111642,89572.0,89570.0,0.02359574]
[1765764485559,0.0111642,89572.0,89571.0,0.02359574]
[1765764485923,0.00069461,89572.0,89571.0,0.02359574]
[1765764486127,0.00069461,89572.0,89571.0,0.05423574]
[1765764486780,0.00069461,89572.0,89571.0,0.02359574]
[1765764488115,0.00169461,89572.0,89571.0,0.02359574]
[1765764488317,0.00169461,89572.0,89571.0,0.05303756]
[1765764488720,0.00169461,89572.0,89571.0,0.02359574]
[1765764489205,0.00169461,89572.0,89571.0,0.05303756]